bitfinex-derivatives/quotes_SOLF0:USTF0_20250522
["timestamp","ask_amount","ask_price","bid_price","bid_amount"]
[1747882067637,0.03855635,174.41,174.38,5.7327]
[1747882067837,0.03855635,174.41,174.37,0.03918076]
[1747882068438,0.03855635,174.41,174.37,130.39918076]
[1747882068638,0.03855635,174.41,174.38,1.43333552]
[1747882068843,0.03855635,174.41,174.37,130.39918076]
[1747882069040,0.03855635,174.41,174.4,5.7323]
[1747882071840,0.03855635,174.41,174.39,5.7325]
[1747882072245,0.03855635,174.41,174.4,5.7323]
[1747882080747,130.38,174.49,174.44,5.7309]
[1747882081144,129.6,174.53,174.41,6.65654369]
[1747882081345,129.6,174.53,174.42,1.43310116]
[1747882081546,129.6,174.53,174.41,6.65654369]
[1747882081742,129.6,174.53,174.45,0.03751045]
[1747882081946,0.03994892,174.49,174.45,0.03751045]
[1747882082651,5.76944892,174.49,174.45,0.03751045]
[1747882082850,0.03994892,174.49,174.45,0.03751045]
[1747882083244,5.7301,174.47,174.45,0.03751045]
[1747882083852,0.03994892,174.49,174.45,0.03751045]
[1747882084350,5.76964892,174.49,174.45,0.03751045]
[1747882085050,0.03994892,174.49,174.45,0.03751045]
[1747882085553,0.03994892,174.49,174.47,5.73]
[1747882085752,0.03994892,174.49,174.45,0.03751045]
[1747882085955,0.03994892,174.49,174.46,5.7303]
[1747882086952,0.03994892,174.49,174.45,0.03751045]
[1747882087550,0.03994892,174.49,174.46,5.7303]
[1747882087751,0.03994892,174.49,174.45,0.03751045]
[1747882088153,0.03994892,174.49,174.45,5.76811045]
[1747882088347,0.03994892,174.49,174.45,0.03751045]
[1747882089254,5.7297,174.48,174.45,0.03751045]
[1747882091059,5.73,174.47,174.45,0.03751045]
[1747882091260,0.03994892,174.49,174.45,0.03751045]
[1747882091761,0.03994892,174.49,174.46,5.7301]
[1747882092260,5.76934892,174.49,174.46,5.7301]
[1747882092462,0.03994892,174.49,174.45,0.03751045]
[1747882092858,5.76934892,174.49,174.46,5.7303]
[1747882093257,0.03994892,174.49,174.45,0.03751045]
[1747882094163,0.03994892,174.49,174.46,5.73]
[1747882095267,0.03994892,174.49,174.47,5.73]
[1747882095563,0.03994892,174.49,174.45,0.03751045]
[1747882095866,5.7298,174.48,174.45,0.03751045]
[1747882097266,0.03994892,174.49,174.45,5.76821045]
[1747882097463,0.03994892,174.49,174.45,0.03751045]
[1747882097764,5.7303,174.46,174.45,0.03751045]
[1747882097956,136.27649261,174.49,174.39,1.4334574]
[1747882098156,6.65654369,174.46,174.27,12.20803599]
[1747882098357,6.65654369,174.43,174.28,131.01356105]
[1747882098565,129.58,174.42,174.29,1.43356105]
[1747882098762,5.7333,174.38,174.33,5.7346]
[1747882098957,0.04125232,174.37,174.34,1.47118288]
[1747882099160,0.04125232,174.37,174.34,0.03718591]
[1747882100660,0.04125232,174.37,174.34,5.77138591]
[1747882101567,0.04125232,174.37,174.34,0.03718591]
[1747882103367,5.7339,174.36,174.34,0.03718591]
[1747882103565,0.04125232,174.37,174.34,0.03718591]
[1747882103966,5.734,174.35,174.34,0.03718591]
[1747882104162,0.04125232,174.37,174.34,0.03718591]
[1747882105570,5.77465232,174.37,174.34,0.03718591]
[1747882105871,0.04125232,174.37,174.34,0.03718591]
[1747882106668,0.04125232,174.37,174.35,1.43378394]
[1747882106869,0.04125232,174.37,174.36,5.7336]
[1747882107067,0.04125232,174.37,174.34,0.03718591]
[1747882107767,0.04125232,174.37,174.35,5.7337]
[1747882108670,0.04125232,174.37,174.36,5.7336]
[1747882109066,11.4555,174.54,174.36,1.43367135]
[1747882109370,129.52,174.5,174.38,6.65654369]
[1747882109772,5.7301,174.47,174.42,5.7313]
[1747882109975,0.04021042,174.46,174.43,0.03647822]
[1747882112272,5.7307,174.45,174.43,0.03647822]
[1747882112874,5.731,174.44,174.43,0.03647822]
[1747882113671,5.7315,174.43,174.37,1.43341287]
[1747882113871,129.52,174.5,174.36,136.17654369]
[1747882114071,129.52,174.5,174.38,5.7327]
[1747882114675,0.03732982,174.46,174.42,0.03844881]
[1747882115880,5.7313,174.43,174.42,0.03844881]
[1747882116080,129.5,174.45,174.32,136.15654369]
[1747882116381,129.5,174.45,174.33,1.43365312]
[1747882116576,129.5,174.45,174.35,5.7339]
[1747882116976,5.7326,174.4,174.32,136.15654369]
[1747882117179,0.03648437,174.4,174.37,0.04185172]
[1747882117579,5.7329,174.39,174.37,0.04185172]
[1747882117780,0.03648437,174.4,174.37,0.04185172]
[1747882118575,0.03648437,174.4,174.26,6.65654369]
[1747882118576,129.5,174.39,174.26,6.65654369]
[1747882118777,129.5,174.39,174.27,1.43421654]
[1747882118978,5.7345,174.34,174.3,5.7355]
[1747882119182,129.5,174.39,174.3,5.7355]
[1747882119679,5.7343,174.34,174.33,0.03865384]
[1747882121886,0.04228624,174.36,174.33,0.03865384]
[1747882123588,5.77618624,174.36,174.33,0.03865384]
[1747882123989,0.04228624,174.36,174.33,0.03865384]
[1747882124189,5.7343,174.34,174.33,0.03865384]
[1747882124490,0.04228624,174.36,174.25,1.43409702]
[1747882124788,6.65654369,174.38,174.24,129.5]
[1747882125097,6.65654369,174.38,174.26,5.7369]
[1747882125394,0.04071439,174.34,174.3,0.04408666]
[1747882125694,5.7353,174.31,174.3,0.04408666]
[1747882126293,5.7367,174.27,174.23,5.7379]
[1747882126797,5.7363,174.28,174.24,5.7375]
[1747882127097,129.54,174.33,174.21,1.43458384]
[1747882127298,0.04008582,174.29,174.25,5.77903373]
[1747882127996,5.7363,174.28,174.25,0.04183373]
[1747882128193,0.04008582,174.29,174.25,0.04183373]
[1747882128399,0.04008582,174.29,174.26,1.43452811]
[1747882128598,5.7366,174.27,174.26,1.43452811]
[1747882129400,5.7369,174.26,174.25,0.04183373]
[1747882135604,5.7369,174.26,174.25,1.47683194]
[1747882136397,5.7369,174.26,174.25,0.04183373]
[1747882136699,0.04008582,174.29,174.25,0.04183373]
[1747882138404,5.7363,174.28,174.25,0.04183373]
[1747882138700,0.04008582,174.29,174.25,0.04183373]
[1747882139006,5.7365,174.28,174.25,5.77903373]
[1747882139302,0.04008582,174.29,174.25,5.77903373]
[1747882139502,5.77618582,174.29,174.25,5.77903373]
[1747882140504,5.77598582,174.29,174.25,0.04183373]
[1747882140904,0.04008582,174.29,174.25,0.04183373]
[1747882141908,5.7369,174.26,174.25,0.04183373]
[1747882145610,5.7366,174.27,174.25,0.04183373]
[1747882145914,0.04008582,174.29,174.25,0.04183373]
[1747882146413,6.66985904,174.51,174.28,6.66985904]
[1747882146414,129.52,174.4,174.28,6.66985904]
[1747882146811,129.52,174.4,174.28,136.18985904]
[1747882147010,5.7338,174.36,174.31,5.735]
[1747882147410,0.04290637,174.35,174.32,0.04408599]
[1747882148011,0.04290637,174.35,174.33,5.7344]
[1747882148212,0.04290637,174.35,174.32,0.04408599]
[1747882148618,0.04290637,174.35,174.33,5.7346]
[1747882149018,0.04290637,174.35,174.34,5.7342]
[1747882149318,129.52,174.44,174.32,0.04408599]
[1747882149518,129.52,174.44,174.33,129.52]
[1747882149717,5.7314,174.43,174.33,129.52]
[1747882149915,129.52,174.44,174.33,129.52]
[1747882150213,129.52,174.49,174.35,9.86956388]
[1747882150413,0.03659504,174.44,174.4,0.03631207]
[1747882150612,0.04317949,174.44,174.4,0.03925776]
[1747882152021,0.04317949,174.44,174.4,5.77145776]
[1747882152318,0.04317949,174.44,174.4,0.03925776]
[1747882153520,5.77427949,174.44,174.4,0.03925776]
[1747882153915,0.04317949,174.44,174.4,0.03925776]
[1747882154122,5.7319,174.42,174.4,0.03925776]
[1747882154623,5.7319,174.41,174.4,0.03925776]
[1747882159116,5.7319,174.41,174.4,5.776e-05]
[1747882164827,5.7316,174.43,174.4,5.776e-05]
[1747882165329,0.04317949,174.44,174.4,5.776e-05]
[1747882165724,0.04317949,174.44,174.41,5.7319]
[1747882166526,0.04317949,174.44,174.4,5.73225776]
[1747882166724,0.04317949,174.44,174.41,1.43346728]
[1747882167630,0.04317949,174.44,174.4,5.776e-05]
[1747882168030,5.7319,174.41,174.4,5.776e-05]
[1747882168830,0.04317949,174.44,174.4,5.776e-05]
[1747882169228,5.77417949,174.44,174.4,5.73205776]
[1747882169533,0.04317949,174.44,174.4,5.776e-05]
[1747882173128,5.7319,174.41,174.4,5.776e-05]
[1747882174434,5.7317,174.42,174.4,5.776e-05]
[1747882175425,5.7314,174.43,174.4,5.776e-05]
[1747882176537,0.04317949,174.44,174.4,5.776e-05]
[1747882177336,5.7317,174.42,174.4,5.776e-05]
[1747882177534,0.04317949,174.44,174.4,5.776e-05]
[1747882178027,5.7317,174.42,174.4,5.776e-05]
[1747882178231,0.04317949,174.44,174.4,5.776e-05]
[1747882178641,5.7319,174.41,174.4,5.776e-05]
[1747882178838,0.04317949,174.44,174.4,5.776e-05]
[1747882180436,5.7319,174.41,174.4,5.776e-05]
[1747882184640,5.7319,174.41,174.4,1.43373952]
[1747882184841,5.7316,174.42,174.4,1.43373952]
[1747882185546,5.7319,174.41,174.4,1.43373952]
[1747882185740,5.7319,174.41,174.4,5.776e-05]
[1747882191458,129.40317949,174.44,174.4,5.776e-05]
[1747882192060,5.7313,174.43,174.4,5.776e-05]
[1747882192261,129.40317949,174.44,174.4,5.776e-05]
[1747882193168,5.7319,174.41,174.4,5.776e-05]
[1747882195161,5.7319,174.41,174.4,1.274e-05]
[1747882195667,5.7337,174.36,174.32,5.7348]
[1747882195967,5.7337,174.36,174.33,7.1684249]
[1747882196267,0.04224172,174.36,174.34,1.4339249]
[1747882196460,0.04224172,174.36,174.35,1.4339249]
[1747882196658,0.04224172,174.36,174.35,1.43392387]
[1747882197169,5.77584172,174.36,174.35,1.43392387]
[1747882198069,5.7342,174.34,174.33,0.04015241]
[1747882198270,5.7342,174.34,174.33,1.47426421]
[1747882200667,5.7342,174.34,174.33,1.47431625]
[1747882201168,5.7342,174.34,174.33,0.04015241]
[1747882201365,5.7342,174.34,174.33,1.47430428]
[1747882201560,5.7342,174.34,174.33,0.04015241]
[1747882201965,0.04224172,174.36,174.33,0.04015241]
[1747882202269,129.36,174.45,174.34,8.09287184]
[1747882202466,129.36,174.46,174.37,5.7331]
[1747882202769,129.36,174.45,174.37,6.65867242]
[1747882203063,129.36,174.47,174.37,6.65867242]
[1747882203270,129.36,174.47,174.39,0.04088892]
[1747882203271,0.04166955,174.43,174.39,0.04088892]
[1747882204271,5.7318,174.42,174.39,0.04088892]
[1747882204468,0.04166955,174.43,174.39,0.04088892]
[1747882205767,0.04166955,174.43,174.4,1.43356956]
[1747882205972,0.04166955,174.43,174.39,0.04088892]
[1747882206172,0.04166955,174.43,174.4,1.43353399]
[1747882206371,0.04166955,174.43,174.41,1.43345223]
[1747882206569,0.04166955,174.43,174.42,5.7316]
[1747882206969,0.04166955,174.43,174.39,0.04088892]
[1747882207169,5.7322,174.41,174.4,1.43358581]
[1747882207469,5.7322,174.41,174.39,0.04088892]
[1747882207671,0.04166955,174.43,174.39,0.04088892]
[1747882207874,5.7323,174.4,174.39,0.04088892]
[1747882208173,0.04166955,174.43,174.39,1.47452]
[1747882208374,5.7317,174.42,174.39,0.04088892]
[1747882208674,129.34,174.41,174.24,129.34]
[1747882208974,129.34,174.41,174.29,5.7358]
[1747882209274,129.34,174.41,174.3,1.43386792]
[1747882209473,5.7348,174.33,174.31,1.43386792]
[1747882209674,5.7348,174.33,174.3,0.03722955]
[1747882209974,0.04224972,174.34,174.3,0.03722955]
[1747882210177,0.04224972,174.34,174.31,1.43430018]
[1747882210373,0.04224972,174.34,174.32,1.43430018]
[1747882210674,0.04224972,174.34,174.33,7.16890018]
[1747882212679,5.7318,174.42,174.37,5.733]
[1747882213278,5.7319,174.41,174.37,5.733]
[1747882213680,5.77545093,174.41,174.37,5.77547581]
[1747882213880,0.04355093,174.41,174.37,0.04247581]
[1747882214782,5.7329,174.38,174.37,0.04247581]
[1747882215683,0.04355093,174.41,174.37,0.04247581]
[1747882217681,0.04355093,174.41,174.38,5.7328]
[1747882218279,0.04355093,174.41,174.37,0.04247581]
[1747882219685,5.7323,174.4,174.37,0.04247581]
[1747882219887,0.04355093,174.41,174.37,0.04247581]
[1747882220490,0.04355093,174.41,174.38,1.43373811]
[1747882220681,0.04355093,174.41,174.37,0.04247581]
[1747882221591,5.7325,174.4,174.37,0.04247581]
[1747882221782,0.04355093,174.41,174.37,0.04247581]
[1747882222884,0.04355093,174.41,174.39,5.7325]
[1747882223087,0.04355093,174.41,174.37,0.04247581]
[1747882223391,0.04355093,174.41,174.38,5.7328]
[1747882223689,0.04355093,174.41,174.37,0.04247581]
[1747882224190,5.7323,174.4,174.37,0.04247581]
[1747882224584,0.04355093,174.41,174.37,0.04247581]
[1747882224784,5.77565093,174.41,174.37,5.77557581]
[1747882225694,5.77565093,174.41,174.38,1.43368787]
[1747882225892,5.77565093,174.41,174.37,5.77557581]
[1747882226193,0.04355093,174.41,174.38,7.16648787]
[1747882226391,0.04355093,174.41,174.38,5.7328]
[1747882226591,5.77545093,174.41,174.38,5.7328]
[1747882227491,0.04355093,174.41,174.38,5.7328]
[1747882229393,0.04355093,174.41,174.37,0.04247581]
[1747882229693,0.04355093,174.41,174.39,1.43368208]
[1747882230386,0.04355093,174.41,174.37,0.04247581]
[1747882230593,5.7325,174.4,174.37,5.77567581]
[1747882230786,0.04355093,174.41,174.37,0.04247581]
[1747882230992,0.04355093,174.41,174.38,1.43373947]
[1747882231192,0.04355093,174.41,174.4,5.7322]
[1747882231998,129.28,174.5,174.4,1.43355535]
[1747882232199,129.28,174.5,174.41,8.09222777]
[1747882232491,5.7298,174.48,174.44,5.7307]
[1747882232896,5.76612972,174.48,174.44,5.76888149]
[1747882233194,5.76612972,174.48,174.44,0.03818149]
[1747882233383,0.03632972,174.48,174.44,0.03818149]
[1747882235096,5.73,174.47,174.44,0.03818149]
[1747882235693,0.03632972,174.48,174.44,0.03818149]
[1747882235694,5.76602972,174.48,174.44,0.03818149]
[1747882236294,0.03632972,174.48,174.44,0.03818149]
[1747882236695,0.03632972,174.48,174.44,5.76888149]
[1747882237098,0.03632972,174.48,174.44,6.69685391]
[1747882237491,0.03632972,174.48,174.47,5.73]
[1747882238194,0.03632972,174.48,174.44,135.95685391]
[1747882238589,0.03632972,174.48,174.45,5.7306]
[1747882238898,0.03632972,174.48,174.44,135.95685391]
[1747882239196,5.76602972,174.48,174.44,135.95685391]
[1747882239800,0.03632972,174.48,174.44,135.95685391]
[1747882240000,0.03632972,174.48,174.44,129.29818149]
[1747882240198,0.03632972,174.48,174.44,0.03818149]
[1747882240398,5.7306,174.45,174.44,0.03818149]
[1747882241600,0.03632972,174.48,174.44,0.03818149]
[1747882243107,0.03632972,174.48,174.45,1.43330469]
[1747882243811,0.03632972,174.48,174.44,0.03818149]
[1747882244011,0.03632972,174.48,174.45,5.7304]
[1747882244213,0.03632972,174.48,174.44,0.03818149]
[1747882244511,0.03632972,174.48,174.44,5.76908149]
[1747882244811,5.76592972,174.48,174.44,5.76908149]
[1747882245112,5.76592972,174.48,174.44,0.03818149]
[1747882245311,5.7301,174.47,174.44,0.03818149]
[1747882247414,0.03632972,174.48,174.44,0.03818149]
[1747882247915,5.7306,174.45,174.44,0.03818149]
[1747882248113,129.24,174.47,174.36,6.65867242]
[1747882248415,1.977,174.46,174.31,12.39357242]
[1747882248615,6.65867242,174.44,174.32,1.43382827]
[1747882248815,6.65867242,174.44,174.3,135.89867242]
[1747882249119,0.04224584,174.39,174.35,0.03947623]
[1747882249313,129.24,174.38,174.35,0.03947623]
[1747882250114,5.7336,174.36,174.35,0.03947623]
[1747882253822,5.7336,174.36,174.35,7.623e-05]
[1747882255013,5.7364,174.28,174.22,129.3]
[1747882255318,5.7364,174.28,174.23,1.43459817]
[1747882255522,5.7351,174.32,174.27,5.7364]
[1747882255714,129.3,174.33,174.25,1.43462079]
[1747882256022,129.3,174.33,174.24,6.65867242]
[1747882256317,0.03894683,174.31,174.27,0.03633189]
[1747882258110,5.77444683,174.31,174.27,0.03633189]
[1747882258521,0.03894683,174.31,174.27,0.03633189]
[1747882258718,5.77444683,174.31,174.27,0.03633189]
[1747882259821,0.03894683,174.31,174.27,0.03633189]
[1747882260315,5.7362,174.29,174.27,0.03633189]
[1747882260822,0.03894683,174.31,174.27,0.03633189]
[1747882261419,5.736,174.29,174.27,0.03633189]
[1747882262821,5.7362,174.28,174.27,0.03633189]
[1747882263024,0.03894683,174.31,174.18,133.2435]
[1747882263223,3.8197,174.3,174.19,1.43477895]
[1747882263729,3.8197,174.3,174.18,133.2435]
[1747882264021,0.04347477,174.26,174.22,0.03853007]
[1747882264223,5.7378,174.23,174.22,0.03853007]
[1747882264822,5.7378,174.23,174.22,3.007e-05]
[1747882266034,5.7376,174.24,174.22,3.007e-05]
[1747882266225,0.04347477,174.26,174.22,3.007e-05]
[1747882267421,5.7378,174.23,174.22,3.007e-05]
[1747882267927,0.04347477,174.26,174.22,3.007e-05]
[1747882268531,5.7372,174.25,174.22,3.007e-05]
[1747882268826,0.04347477,174.26,174.22,3.007e-05]
[1747882270129,5.7376,174.24,174.22,3.007e-05]
[1747882270330,0.04347477,174.26,174.22,3.007e-05]
[1747882270827,0.04347477,174.26,174.22,6.65870249]
[1747882271030,0.04347477,174.26,174.23,4.131]
[1747882271430,129.26,174.34,174.25,6.65867242]
[1747882271625,2.0665,174.37,174.25,6.65867242]
[1747882271827,2.0665,174.37,174.26,2.0145]
[1747882272328,0.04282502,174.33,174.3,0.04335041]
[1747882273223,5.7352,174.31,174.3,0.04335041]
[1747882273623,129.24,174.32,174.18,135.89867242]
[1747882273828,3.93,174.3,174.18,129.24]
[1747882274630,0.03886545,174.26,174.22,0.04309186]
[1747882275433,5.7378,174.23,174.22,0.04309186]
[1747882280132,0.03886545,174.26,174.22,0.04309186]
[1747882280330,0.03886545,174.26,174.23,5.7376]
[1747882280537,0.03886545,174.26,174.22,0.04309186]
[1747882280937,0.03886545,174.26,174.23,5.7378]
[1747882281433,0.03886545,174.26,174.25,5.7372]
[1747882281839,0.03886545,174.26,174.22,0.04309186]
[1747882282035,0.03886545,174.26,174.23,5.7376]
[1747882282231,5.77576545,174.26,174.22,0.04309186]
[1747882282428,0.03886545,174.26,174.22,0.04309186]
[1747882283442,0.03886545,174.26,174.24,0.99753527]
[1747882284138,0.03886545,174.26,174.23,5.7378]
[1747882284834,5.77576545,174.26,174.23,5.7378]
[1747882285034,0.03886545,174.26,174.23,5.7378]
[1747882285236,0.03886545,174.26,174.24,5.7375]
[1747882285634,0.03886545,174.26,174.23,5.7378]
[1747882286036,0.03886545,174.26,174.22,0.04309186]
[1747882286240,0.03886545,174.26,174.23,5.7378]
[1747882286440,0.03886545,174.26,174.22,0.04309186]
[1747882286843,5.77596545,174.26,174.22,5.78099186]
[1747882287241,5.77596545,174.26,174.22,0.04309186]
[1747882287541,0.03886545,174.26,174.22,0.04309186]
[1747882289343,5.77576545,174.26,174.22,5.78099186]
[1747882289542,5.77576545,174.26,174.22,0.04309186]
[1747882289746,0.03886545,174.26,174.23,5.7378]
[1747882290445,5.77576545,174.26,174.22,0.04309186]
[1747882291347,5.77576545,174.26,174.22,5.78119186]
[1747882292246,5.77576545,174.26,174.23,1.43474611]
[1747882292446,5.77576545,174.26,174.22,5.78119186]
[1747882292647,5.77576545,174.26,174.23,1.43474611]
[1747882292944,5.77576545,174.26,174.22,5.78119186]
[1747882293146,5.77576545,174.26,174.23,1.43473895]
[1747882293346,5.77576545,174.26,174.24,1.43473895]
[1747882293548,5.77576545,174.26,174.22,5.78119186]
[1747882293841,0.03886545,174.26,174.23,1.43474611]
[1747882294047,0.03886545,174.26,174.24,1.43474611]
[1747882294244,0.03886545,174.26,174.25,1.43463285]
[1747882294748,0.03886545,174.26,174.24,5.7373]
[1747882294945,0.03886545,174.26,174.25,5.7372]
[1747882295346,0.03886545,174.26,174.25,7.17185776]
[1747882295842,0.03886545,174.26,174.25,1.43465776]
[1747882296348,5.77576545,174.26,174.22,5.78119186]
[1747882296551,5.77576545,174.26,174.23,1.43472732]
[1747882296749,5.77576545,174.26,174.24,1.43472732]
[1747882297048,5.77576545,174.26,174.22,5.78119186]
[1747882297247,5.77576545,174.26,174.23,1.43476382]
[1747882297448,5.77576545,174.26,174.24,1.43476382]
[1747882297643,5.77576545,174.26,174.22,5.78119186]
[1747882297848,5.77576545,174.26,174.23,7.17259245]
[1747882298047,5.77576545,174.26,174.24,1.43479245]
[1747882298251,5.77576545,174.26,174.22,0.04309186]
[1747882298449,5.77576545,174.26,174.23,1.43473164]
[1747882298747,5.77576545,174.26,174.24,1.43473164]
[1747882298947,5.7372,174.25,174.22,0.04309186]
[1747882299149,0.03886545,174.26,174.22,0.04309186]
[1747882299350,0.03886545,174.26,174.23,1.4348819]
[1747882299644,5.77576545,174.26,174.22,0.04309186]
[1747882299846,5.77576545,174.26,174.23,1.43483186]
[1747882300148,5.77576545,174.26,174.22,0.04309186]
[1747882300342,5.77576545,174.26,174.23,1.4348213]
[1747882300542,0.03886545,174.26,174.22,0.04309186]
[1747882300744,0.03886545,174.26,174.23,1.43482835]
[1747882300946,0.03886545,174.26,174.24,1.43482835]
[1747882301145,0.03886545,174.26,174.22,0.04309186]
[1747882301345,0.03886545,174.26,174.23,1.43474828]
[1747882301547,0.03886545,174.26,174.24,7.17224828]
[1747882301752,0.03886545,174.26,174.24,5.7375]
[1747882302146,0.03886545,174.26,174.25,5.7372]
[1747882303645,0.03886545,174.26,174.24,5.7374]
[1747882305249,0.03886545,174.26,174.25,5.7372]
[1747882305457,131.3094,174.34,174.25,1.4347132]
[1747882305652,131.3094,174.34,174.26,1.4347132]
[1747882305853,131.3094,174.34,174.28,5.7361]
[1747882306357,0.04208632,174.33,174.29,0.04027051]
[1747882306654,5.7351,174.32,174.29,0.04027051]
[1747882307048,0.04208632,174.33,174.29,0.04027051]
[1747882307761,5.77688632,174.33,174.29,5.77607051]
[1747882307950,0.04208632,174.33,174.29,0.04027051]
[1747882308652,5.7349,174.32,174.29,0.04027051]
[1747882310657,5.77678632,174.33,174.29,5.77607051]
[1747882310858,0.04208632,174.33,174.29,5.77607051]
[1747882311459,5.7349,174.32,174.29,0.04027051]
[1747882311659,0.04208632,174.33,174.29,0.04027051]
[1747882312564,5.7355,174.31,174.29,0.04027051]
[1747882315460,5.77688632,174.33,174.29,5.77607051]
[1747882315856,0.04208632,174.33,174.29,5.77607051]
[1747882316067,0.04208632,174.33,174.29,0.04027051]
[1747882316263,0.04208632,174.33,174.31,6.66908183]
[1747882316459,1.9186,174.4,174.32,1.43411649]
[1747882316658,129.16,174.42,174.31,6.66908183]
[1747882316864,129.16,174.42,174.32,1.43403466]
[1747882317068,129.16,174.42,174.33,1.4340353]
[1747882317270,5.7327,174.39,174.34,5.7342]
[1747882317462,0.04054495,174.38,174.35,0.0437127]
[1747882317961,0.04054495,174.38,174.36,5.7333]
[1747882318666,0.04054495,174.38,174.35,0.0437127]
[1747882320167,0.04054495,174.38,174.36,1.43386824]
[1747882320968,5.77374495,174.38,174.36,1.43386824]
[1747882321468,5.77374495,174.38,174.35,0.0437127]
[1747882322070,0.04054495,174.38,174.35,0.0437127]
[1747882322569,0.04054495,174.38,174.36,5.7335]
[1747882322771,0.04054495,174.38,174.35,0.0437127]
[1747882323165,5.731,174.44,174.37,6.66908183]
[1747882323867,5.731,174.44,174.39,5.7324]
[1747882324071,134.9101,174.46,174.37,6.66908183]
[1747882324272,0.03900754,174.43,174.4,0.03624512]
[1747882324464,5.7318,174.42,174.4,0.03624512]
[1747882324976,5.7319,174.41,174.4,0.03624512]
[1747882327584,5.7316,174.42,174.4,0.03624512]
[1747882327881,0.03900754,174.43,174.4,0.03624512]
[1747882328381,5.7319,174.41,174.4,0.03624512]
[1747882332179,0.03900754,174.43,174.4,0.03624512]
[1747882332682,5.77060754,174.43,174.4,0.03624512]
[1747882332887,0.03900754,174.43,174.4,1.4699199]
[1747882333278,5.7318,174.42,174.4,1.4699199]
[1747882333686,0.03900754,174.43,174.4,5.76844512]
[1747882333882,0.03900754,174.43,174.4,0.03624512]
[1747882334288,0.03900754,174.43,174.4,5.76844512]
[1747882335085,5.7316,174.42,174.4,0.03624512]
[1747882335680,0.03900754,174.43,174.3,12.54928183]
[1747882335880,6.66908183,174.43,174.31,5.7349]
[1747882336086,6.66908183,174.4,174.3,1.43399984]
[1747882336279,139.82538183,174.39,174.26,1.43416105]
[1747882336479,5.7345,174.34,174.29,5.7358]
[1747882336679,0.03775959,174.33,174.3,0.04211127]
[1747882337378,5.77255959,174.33,174.3,0.04211127]
[1747882338190,5.735,174.32,174.3,0.04211127]
[1747882338785,5.7352,174.31,174.3,0.04211127]
[1747882338988,0.03775959,174.33,174.3,0.04211127]
[1747882339482,5.735,174.32,174.3,0.04211127]
[1747882339688,0.03775959,174.33,174.3,0.04211127]
[1747882340290,0.03775959,174.33,174.3,129.06211127]
[1747882340587,129.02,174.42,174.32,6.66908183]
[1747882340991,5.7315,174.43,174.38,5.7326]
[1747882341287,3.9572,174.44,174.35,135.68908183]
[1747882341487,2.0328,174.44,174.35,135.68908183]
[1747882341688,0.04265981,174.41,174.38,0.03952187]
[1747882344194,5.7326,174.39,174.38,0.03952187]
[1747882344496,0.04265981,174.41,174.38,0.03952187]
[1747882348390,5.7325,174.4,174.38,0.03952187]
[1747882350192,5.7326,174.39,174.38,0.03952187]
[1747882351899,5.7324,174.4,174.38,0.03952187]
[1747882352694,0.04265981,174.41,174.38,0.03952187]
[1747882353198,5.7324,174.4,174.38,0.03952187]
[1747882354204,5.77465981,174.41,174.38,0.03952187]
[1747882355502,0.04265981,174.41,174.38,0.03952187]
[1747882355695,0.04265981,174.41,174.39,1.43358957]
[1747882355899,130.8376,174.5,174.4,1.4334181]
[1747882356097,130.8376,174.5,174.41,128.88]
[1747882356497,130.8376,174.5,174.42,5.7315]
[1747882356703,130.8376,174.5,174.41,128.88]
[1747882356898,0.04374138,174.47,174.44,0.04189317]
[1747882358604,0.04374138,174.47,174.46,5.7303]
[1747882358804,5.7277,174.54,174.46,128.88]
[1747882359102,128.88,174.55,174.46,128.88]
[1747882359804,0.04159363,174.52,174.49,0.04398512]
[1747882360907,0.04159363,174.52,174.49,5.77318512]
[1747882361200,0.04159363,174.52,174.49,0.04398512]
[1747882362000,0.04159363,174.52,174.49,5.77318512]
[1747882362201,0.04159363,174.52,174.49,0.04398512]
[1747882362598,0.04159363,174.52,174.5,5.729]
[1747882363011,0.04159363,174.52,174.49,0.04398512]
[1747882363306,0.04159363,174.52,174.51,5.7286]
[1747882363498,0.04159363,174.52,174.51,134.5686]
[1747882364905,0.04159363,174.52,174.51,136.00096161]
[1747882366308,0.04159363,174.52,174.51,134.5686]
[1747882368115,128.86,174.6,174.56,5.7268]
[1747882368312,128.86,174.6,174.51,128.84]
[1747882369014,0.03916457,174.57,174.54,0.03627749]
[1747882370214,0.03916457,174.57,174.54,5.76387749]
[1747882370518,0.03916457,174.57,174.54,6.76005615]
[1747882370909,0.03916457,174.57,174.54,5.76387749]
[1747882372614,0.03916457,174.57,174.55,5.7272]
[1747882373318,0.03916457,174.57,174.56,5.727]
[1747882375516,128.78,174.64,174.56,128.78]